[Event "*** Titled Tuesday Blitz"]
[Site "Chess.com"]
[Date "2021.02.16"]
[Round "7"]
[White "zurzan"]
[Black "cstevens1"]
[Result "0-1"]
[WhiteElo "2039"]
[BlackElo "2620"]
[TimeControl "180+1"]
[EndTime "11:14:44 PST"]
[Termination "cstevens1 won by resignation"]

1. f4 {[%clk 0:03:00.9]} 1... d5 {[%clk 0:02:59.2]} 2. Nf3 {[%clk 0:03:00.9]}
2... g6 {[%clk 0:02:58.2]} 3. g3 {[%clk 0:03:01]} 3... Bg7 {[%clk 0:02:59.1]} 4.
Bg2 {[%clk 0:03:01.7]} 4... c5 {[%clk 0:02:59.9]} 5. O-O {[%clk 0:03:02.5]} 5...
Nc6 {[%clk 0:03:00.7]} 6. d3 {[%clk 0:03:03.3]} 6... d4 {[%clk 0:03:00.5]} 7. c3
{[%clk 0:03:04.2]} 7... Nh6 {[%clk 0:03:00.6]} 8. Qc2 {[%clk 0:03:03.7]} 8...
O-O {[%clk 0:02:59.8]} 9. h3 {[%clk 0:03:00.2]} 9... Nf5 {[%clk 0:02:59.8]} 10.
Kh2 {[%clk 0:02:56.9]} 10... Bd7 {[%clk 0:02:57.2]} 11. Re1 {[%clk 0:02:42]}
11... Rc8 {[%clk 0:02:57.3]} 12. e4 {[%clk 0:02:39.7]} 12... dxe3 {[%clk
0:02:57.5]} 13. Bxe3 {[%clk 0:02:39.7]} 13... Nxe3 {[%clk 0:02:56.7]} 14. Rxe3
{[%clk 0:02:39.9]} 14... Nd4 {[%clk 0:02:56.8]} 15. Nxd4 {[%clk 0:02:33.3]}
15... cxd4 {[%clk 0:02:56.7]} 16. Re2 {[%clk 0:02:27.7]} 16... dxc3 {[%clk
0:02:43.4]} 17. Nxc3 {[%clk 0:02:27]} 17... Bc6 {[%clk 0:02:36.8]} 18. Rc1
{[%clk 0:02:18.3]} 18... e6 {[%clk 0:02:34.8]} 19. Bxc6 {[%clk 0:02:15.6]} 19...
Rxc6 {[%clk 0:02:34.7]} 20. Rd2 {[%clk 0:01:48.7]} 20... Qa5 {[%clk 0:02:34.8]}
21. Qb3 {[%clk 0:01:44.4]} 21... Rb6 {[%clk 0:02:29.6]} 22. Qc4 {[%clk
0:01:35.9]} 22... Rb4 {[%clk 0:02:27.3]} 0-1

[Event "*** Titled Tuesday Blitz"]
[Site "Chess.com"]
[Date "2021.02.16"]
[Round "7"]
[White "Lady_Nika"]
[Black "Skat2704"]
[Result "0-1"]
[WhiteElo "2386"]
[BlackElo "2541"]
[TimeControl "180+1"]
[EndTime "11:15:08 PST"]
[Termination "Skat2704 won by checkmate"]

1. d4 {[%clk 0:02:47.3]} 1... d5 {[%clk 0:02:58.7]} 2. e3 {[%clk 0:02:47.6]}
2... Nf6 {[%clk 0:02:57.4]} 3. f4 {[%clk 0:02:47.9]} 3... c5 {[%clk 0:02:55.7]}
4. Nf3 {[%clk 0:02:48.2]} 4... Nc6 {[%clk 0:02:54.5]} 5. c3 {[%clk 0:02:48.4]}
5... e6 {[%clk 0:02:51.8]} 6. Bd3 {[%clk 0:02:48.5]} 6... Be7 {[%clk 0:02:49]}
7. Nbd2 {[%clk 0:02:48.3]} 7... Qc7 {[%clk 0:02:45.4]} 8. Ne5 {[%clk 0:02:47.8]}
8... O-O {[%clk 0:02:42.4]} 9. O-O {[%clk 0:02:47.7]} 9... c4 {[%clk 0:02:39.5]}
10. Bc2 {[%clk 0:02:47.3]} 10... b5 {[%clk 0:02:39]} 11. Rf3 {[%clk 0:02:45.8]}
11... Bb7 {[%clk 0:02:36.8]} 12. Rh3 {[%clk 0:02:45.4]} 12... g6 {[%clk
0:02:26.4]} 13. g4 {[%clk 0:02:40.6]} 13... Nxe5 {[%clk 0:02:20.4]} 14. fxe5
{[%clk 0:02:39.5]} 14... Ne4 {[%clk 0:02:18.4]} 15. Qe1 {[%clk 0:02:38]} 15...
f6 {[%clk 0:02:13.1]} 16. Nf3 {[%clk 0:02:35.2]} 16... fxe5 {[%clk 0:02:10.7]}
17. Nxe5 {[%clk 0:02:34.4]} 17... Bg5 {[%clk 0:02:06]} 18. Bxe4 {[%clk
0:02:33.5]} 18... dxe4 {[%clk 0:02:03.9]} 19. b3 {[%clk 0:02:31.8]} 19... b4
{[%clk 0:01:56.4]} 20. bxc4 {[%clk 0:02:28.9]} 20... Ba6 {[%clk 0:01:48.9]} 21.
cxb4 {[%clk 0:02:15.5]} 21... Bxc4 {[%clk 0:01:47.3]} 22. Qd2 {[%clk 0:02:08.7]}
22... Rf1+ {[%clk 0:01:43.2]} 23. Kg2 {[%clk 0:02:08.4]} 23... Raf8 {[%clk
0:01:42.6]} 24. Bb2 {[%clk 0:02:08.2]} 24... Rxa1 {[%clk 0:01:32.2]} 25. Bxa1
{[%clk 0:02:07.4]} 25... Bf1+ {[%clk 0:01:32.1]} 26. Kg3 {[%clk 0:02:07.4]}
26... Rf3# {[%clk 0:01:18.1]} 0-1

[Event "*** Titled Tuesday Blitz"]
[Site "Chess.com"]
[Date "2021.02.16"]
[Round "7"]
[White "Eloist"]
[Black "Make_it_shine060"]
[Result "1-0"]
[WhiteElo "2405"]
[BlackElo "2190"]
[TimeControl "180+1"]
[EndTime "11:15:35 PST"]
[Termination "Eloist won by resignation"]

1. e4 {[%clk 0:03:00.9]} 1... c5 {[%clk 0:02:59.5]} 2. Nf3 {[%clk 0:03:00.4]}
2... d6 {[%clk 0:02:58.5]} 3. Bb5+ {[%clk 0:03:00.1]} 3... Nc6 {[%clk 0:02:57]}
4. O-O {[%clk 0:02:59.5]} 4... a6 {[%clk 0:02:55.9]} 5. Bxc6+ {[%clk 0:02:58.8]}
5... bxc6 {[%clk 0:02:55.7]} 6. d4 {[%clk 0:02:44.7]} 6... cxd4 {[%clk
0:02:50.9]} 7. Nxd4 {[%clk 0:02:39.5]} 7... c5 {[%clk 0:02:47.8]} 8. Nf5 {[%clk
0:02:30.6]} 8... g6 {[%clk 0:02:44.6]} 9. Ne3 {[%clk 0:02:16.9]} 9... Bg7 {[%clk
0:02:42.4]} 10. Nc3 {[%clk 0:02:13.1]} 10... Nf6 {[%clk 0:02:39.6]} 11. e5
{[%clk 0:01:48.4]} 11... dxe5 {[%clk 0:02:34.1]} 12. Qxd8+ {[%clk 0:01:49.3]}
12... Kxd8 {[%clk 0:02:34]} 13. Nc4 {[%clk 0:01:48.4]} 13... Nd7 {[%clk
0:02:20.3]} 14. Be3 {[%clk 0:01:41.1]} 14... Bb7 {[%clk 0:02:14]} 15. Rad1
{[%clk 0:01:39.9]} 15... Kc7 {[%clk 0:02:10]} 16. Rxd7+ {[%clk 0:01:30.3]} 16...
Kxd7 {[%clk 0:02:08.9]} 17. Nb6+ {[%clk 0:01:30.7]} 17... Kc6 {[%clk 0:02:05.7]}
18. Nxa8 {[%clk 0:01:31.6]} 18... Rxa8 {[%clk 0:02:03.9]} 19. Na4 {[%clk
0:01:27.8]} 19... e4 {[%clk 0:01:46.6]} 20. Nxc5 {[%clk 0:01:23.9]} 20... Bxb2
{[%clk 0:01:44.8]} 21. Nxb7 {[%clk 0:01:22.5]} 21... Kxb7 {[%clk 0:01:41.2]} 22.
Rb1 {[%clk 0:01:22.1]} 22... Kc6 {[%clk 0:01:34.6]} 23. Rxb2 {[%clk 0:01:21.8]}
1-0

[Event "*** Titled Tuesday Blitz"]
[Site "Chess.com"]
[Date "2021.02.16"]
[Round "7"]
[White "PSvidler"]
[Black "BrianEscalante"]
[Result "1-0"]
[WhiteElo "2908"]
[BlackElo "2619"]
[TimeControl "180+1"]
[EndTime "11:15:40 PST"]
[Termination "PSvidler won by resignation"]

1. c4 {[%clk 0:03:00.9]} 1... c5 {[%clk 0:02:22]} 2. g3 {[%clk 0:02:59.1]} 2...
Nc6 {[%clk 0:02:19.8]} 3. Bg2 {[%clk 0:02:59.2]} 3... g6 {[%clk 0:02:20.3]} 4.
Nc3 {[%clk 0:02:58.4]} 4... Bg7 {[%clk 0:02:20.8]} 5. b3 {[%clk 0:02:51.8]} 5...
e6 {[%clk 0:02:19.9]} 6. Ba3 {[%clk 0:02:51.2]} 6... Nge7 {[%clk 0:02:20.5]} 7.
Bxc5 {[%clk 0:02:50.2]} 7... d6 {[%clk 0:02:20.6]} 8. Ba3 {[%clk 0:02:47.7]}
8... O-O {[%clk 0:02:20.5]} 9. Nf3 {[%clk 0:02:45.5]} 9... a6 {[%clk 0:02:17.9]}
10. O-O {[%clk 0:02:44.5]} 10... b5 {[%clk 0:02:18]} 11. Bb2 {[%clk 0:02:39.7]}
11... bxc4 {[%clk 0:02:17.2]} 12. bxc4 {[%clk 0:02:38.5]} 12... Rb8 {[%clk
0:02:17.6]} 13. Rb1 {[%clk 0:02:38.6]} 13... d5 {[%clk 0:02:16.9]} 14. cxd5
{[%clk 0:02:38]} 14... Nxd5 {[%clk 0:02:17.1]} 15. Qc1 {[%clk 0:02:32]} 15...
Nxc3 {[%clk 0:01:35.1]} 16. Bxc3 {[%clk 0:02:31.8]} 16... Rxb1 {[%clk
0:01:34.9]} 17. Qxb1 {[%clk 0:02:32]} 17... Bxc3 {[%clk 0:01:35.6]} 18. dxc3
{[%clk 0:02:32.1]} 18... Qa5 {[%clk 0:01:36.3]} 19. Nd2 {[%clk 0:02:12.1]} 19...
Qxc3 {[%clk 0:01:29.3]} 20. Ne4 {[%clk 0:02:12.1]} 20... Qe5 {[%clk 0:01:21]}
21. Qb6 {[%clk 0:02:06.7]} 21... Nd4 {[%clk 0:01:18.1]} 22. e3 {[%clk
0:02:01.6]} 22... Ne2+ {[%clk 0:01:18.2]} 23. Kh1 {[%clk 0:02:01.5]} 23... Nc3
{[%clk 0:01:13]} 24. Qb2 {[%clk 0:02:00.9]} 24... Qb5 {[%clk 0:00:48.6]} 25.
Qxc3 {[%clk 0:02:00.1]} 25... Bb7 {[%clk 0:00:49]} 1-0

[Event "*** Titled Tuesday Blitz"]
[Site "Chess.com"]
[Date "2021.02.16"]
[Round "7"]
[White "garfield_pg"]
[Black "DanilNajdin"]
[Result "1-0"]
[WhiteElo "2343"]
[BlackElo "2467"]
[TimeControl "180+1"]
[EndTime "11:15:56 PST"]
[Termination "garfield_pg won by checkmate"]

1. e4 {[%clk 0:03:00.9]} 1... e5 {[%clk 0:02:49.8]} 2. d4 {[%clk 0:03:00.5]}
2... exd4 {[%clk 0:02:48.3]} 3. Nf3 {[%clk 0:03:01]} 3... c5 {[%clk 0:02:31.7]}
4. c3 {[%clk 0:02:57.5]} 4... dxc3 {[%clk 0:02:26.6]} 5. Bc4 {[%clk 0:02:51.2]}
5... Nf6 {[%clk 0:02:08.9]} 6. Nxc3 {[%clk 0:02:48.3]} 6... Be7 {[%clk
0:01:48.8]} 7. e5 {[%clk 0:02:40.5]} 7... Ng4 {[%clk 0:01:35.2]} 8. h3 {[%clk
0:02:34.8]} 8... Nh6 {[%clk 0:01:34.6]} 9. Bxh6 {[%clk 0:02:34]} 9... gxh6
{[%clk 0:01:35.5]} 10. Qd5 {[%clk 0:02:23.7]} 10... O-O {[%clk 0:01:33.8]} 11.
Qe4 {[%clk 0:02:09]} 11... Nc6 {[%clk 0:01:24.8]} 12. Bd3 {[%clk 0:02:00.4]}
12... f5 {[%clk 0:01:23.3]} 13. exf6 {[%clk 0:02:00.2]} 13... Rxf6 {[%clk
0:01:21.4]} 14. Qxh7+ {[%clk 0:01:58.7]} 14... Kf8 {[%clk 0:01:21.6]} 15. Qh8+
{[%clk 0:01:35]} 15... Kf7 {[%clk 0:01:21.3]} 16. Bc4+ {[%clk 0:01:35.4]} 16...
d5 {[%clk 0:01:16.3]} 17. Bxd5+ {[%clk 0:01:32.3]} 17... Be6 {[%clk 0:01:14.6]}
18. Qh7+ {[%clk 0:01:28.9]} 18... Kf8 {[%clk 0:01:11.2]} 19. O-O-O {[%clk
0:01:25.2]} 19... Nd4 {[%clk 0:01:06.4]} 20. Qh8+ {[%clk 0:01:16.8]} 20... Kf7
{[%clk 0:01:06.3]} 21. Ne5# {[%clk 0:01:17.5]} 1-0

[Event "*** Titled Tuesday Blitz"]
[Site "Chess.com"]
[Date "2021.02.16"]
[Round "7"]
[White "iulik86"]
[Black "Leo_C"]
[Result "1-0"]
[WhiteElo "2612"]
[BlackElo "2421"]
[TimeControl "180+1"]
[EndTime "11:16:06 PST"]
[Termination "iulik86 won by resignation"]

1. e4 {[%clk 0:03:00.9]} 1... c6 {[%clk 0:02:59.8]} 2. d4 {[%clk 0:02:59.9]}
2... d5 {[%clk 0:03:00]} 3. exd5 {[%clk 0:02:59.4]} 3... cxd5 {[%clk 0:02:59.9]}
4. Bd3 {[%clk 0:03:00]} 4... Nc6 {[%clk 0:02:59.7]} 5. c3 {[%clk 0:03:00.4]}
5... Nf6 {[%clk 0:02:58.4]} 6. Bf4 {[%clk 0:02:59.5]} 6... Bg4 {[%clk
0:02:56.7]} 7. Qb3 {[%clk 0:02:59.3]} 7... e5 {[%clk 0:02:55.8]} 8. dxe5 {[%clk
0:02:56.9]} 8... Nh5 {[%clk 0:02:52.7]} 9. Be3 {[%clk 0:02:47.8]} 9... Nxe5
{[%clk 0:02:51.5]} 10. Bb5+ {[%clk 0:02:46.1]} 10... Bd7 {[%clk 0:02:49.6]} 11.
Qxd5 {[%clk 0:02:40.6]} 11... f6 {[%clk 0:02:07.4]} 12. Qxb7 {[%clk 0:02:34.5]}
12... Rb8 {[%clk 0:01:57]} 13. Bxd7+ {[%clk 0:02:28.4]} 13... Nxd7 {[%clk
0:01:57.9]} 14. Qf3 {[%clk 0:02:17.3]} 14... g6 {[%clk 0:01:52]} 15. Qe4+ {[%clk
0:02:06]} 15... Be7 {[%clk 0:01:36.4]} 16. Nd2 {[%clk 0:01:58.8]} 16... Rxb2
{[%clk 0:01:32.1]} 17. Nc4 {[%clk 0:01:58.1]} 17... Rb8 {[%clk 0:01:20.5]} 18.
Nf3 {[%clk 0:01:54.7]} 18... O-O {[%clk 0:01:13.4]} 19. Rd1 {[%clk 0:01:53.5]}
19... Nc5 {[%clk 0:01:06.9]} 20. Bxc5 {[%clk 0:01:42.3]} 20... Bxc5 {[%clk
0:00:37.6]} 21. Rxd8 {[%clk 0:01:39.4]} 21... Rbxd8 {[%clk 0:00:38.5]} 22. O-O
{[%clk 0:01:36.7]} 1-0

[Event "*** Titled Tuesday Blitz"]
[Site "Chess.com"]
[Date "2021.02.16"]
[Round "7"]
[White "KafkaesqueKnight"]
[Black "federicosellitti"]
[Result "0-1"]
[WhiteElo "2240"]
[BlackElo "2467"]
[TimeControl "180+1"]
[EndTime "11:16:13 PST"]
[Termination "federicosellitti won by resignation"]

1. d4 {[%clk 0:03:00.9]} 1... d5 {[%clk 0:02:59.5]} 2. c4 {[%clk 0:03:01.3]}
2... Nc6 {[%clk 0:02:58]} 3. Nc3 {[%clk 0:03:00.8]} 3... dxc4 {[%clk 0:02:58.1]}
4. e3 {[%clk 0:02:59.9]} 4... e5 {[%clk 0:02:40]} 5. d5 {[%clk 0:02:48.9]} 5...
Na5 {[%clk 0:02:39.8]} 6. Nf3 {[%clk 0:02:46.6]} 6... Bd6 {[%clk 0:02:33.6]} 7.
Nd2 {[%clk 0:02:43.6]} 7... Nf6 {[%clk 0:02:30.6]} 8. Qa4+ {[%clk 0:02:35.6]}
8... c6 {[%clk 0:02:30.6]} 9. dxc6 {[%clk 0:02:36.1]} 9... Nxc6 {[%clk
0:02:29.8]} 10. Nxc4 {[%clk 0:02:35.3]} 10... O-O {[%clk 0:02:25.7]} 11. Nxd6
{[%clk 0:02:29.3]} 11... Qxd6 {[%clk 0:02:26.6]} 12. Be2 {[%clk 0:02:29.3]}
12... Bf5 {[%clk 0:02:14.4]} 13. O-O {[%clk 0:02:27.3]} 13... e4 {[%clk
0:02:10.7]} 14. Rd1 {[%clk 0:02:21.7]} 14... Qe6 {[%clk 0:01:46.1]} 15. b3
{[%clk 0:02:08.5]} 15... Bg4 {[%clk 0:01:37.3]} 16. Bb2 {[%clk 0:01:58.4]} 16...
Ne5 {[%clk 0:01:27.1]} 17. Bxg4 {[%clk 0:01:25.1]} 17... Qxg4 {[%clk 0:01:28]}
18. Kh1 {[%clk 0:01:05.7]} 18... Qh4 {[%clk 0:01:22.8]} 19. Nxe4 {[%clk
0:00:59.1]} 19... Nxe4 {[%clk 0:01:21.3]} 20. Bxe5 {[%clk 0:00:51.5]} 20...
Nxf2+ {[%clk 0:01:21.5]} 21. Kg1 {[%clk 0:00:48.8]} 21... Qxa4 {[%clk
0:01:22.1]} 22. bxa4 {[%clk 0:00:49.2]} 22... Nxd1 {[%clk 0:01:22.8]} 23. Rxd1
{[%clk 0:00:49.7]} 23... Rfd8 {[%clk 0:01:21.2]} 0-1

[Event "*** Titled Tuesday Blitz"]
[Site "Chess.com"]
[Date "2021.02.16"]
[Round "7"]
[White "harlem4brew"]
[Black "ehrenfeld"]
[Result "1-0"]
[WhiteElo "2318"]
[BlackElo "2466"]
[TimeControl "180+1"]
[EndTime "11:16:14 PST"]
[Termination "harlem4brew won by resignation"]

1. e4 {[%clk 0:03:00.9]} 1... e5 {[%clk 0:02:59.7]} 2. Nf3 {[%clk 0:03:00.5]}
2... Nc6 {[%clk 0:02:59.8]} 3. Bb5 {[%clk 0:03:00.1]} 3... a6 {[%clk 0:02:59.7]}
4. Ba4 {[%clk 0:03:00.1]} 4... Nf6 {[%clk 0:02:59.9]} 5. d3 {[%clk 0:03:00.3]}
5... d6 {[%clk 0:02:59.1]} 6. O-O {[%clk 0:02:59.6]} 6... g6 {[%clk 0:02:59.3]}
7. h3 {[%clk 0:02:57.6]} 7... Bg7 {[%clk 0:02:59.4]} 8. Be3 {[%clk 0:02:58.2]}
8... O-O {[%clk 0:02:59.4]} 9. Qd2 {[%clk 0:02:58.6]} 9... b5 {[%clk 0:02:55.6]}
10. Bb3 {[%clk 0:02:58.5]} 10... Bb7 {[%clk 0:02:53.8]} 11. a4 {[%clk 0:02:58]}
11... d5 {[%clk 0:02:51.1]} 12. axb5 {[%clk 0:02:57.2]} 12... axb5 {[%clk
0:02:50.3]} 13. Rxa8 {[%clk 0:02:57.3]} 13... Bxa8 {[%clk 0:02:50.4]} 14. exd5
{[%clk 0:02:57.6]} 14... Nxd5 {[%clk 0:02:50]} 15. Bxd5 {[%clk 0:02:58.1]} 15...
Qxd5 {[%clk 0:02:49.2]} 16. Nc3 {[%clk 0:02:58.8]} 16... Qd7 {[%clk 0:02:41.4]}
17. Nxb5 {[%clk 0:02:58.4]} 17... f5 {[%clk 0:02:12.9]} 18. Nc3 {[%clk
0:02:53.3]} 18... Nd4 {[%clk 0:02:07.1]} 19. Ne1 {[%clk 0:02:43.8]} 19... c5
{[%clk 0:02:04.1]} 20. Ne2 {[%clk 0:02:39.5]} 20... Qc6 {[%clk 0:01:57.7]} 21.
Bxd4 {[%clk 0:02:37.5]} 21... cxd4 {[%clk 0:01:56.2]} 22. f4 {[%clk 0:02:36.1]}
22... Re8 {[%clk 0:01:43.9]} 23. fxe5 {[%clk 0:02:32.1]} 23... Bxe5 {[%clk
0:01:43.3]} 24. Nf3 {[%clk 0:02:32.2]} 24... Bf6 {[%clk 0:01:39.9]} 25. Nexd4
{[%clk 0:02:29.6]} 25... Qb6 {[%clk 0:01:32.5]} 26. c3 {[%clk 0:02:27.3]} 26...
Bxf3 {[%clk 0:01:24.8]} 27. Rxf3 {[%clk 0:02:26]} 27... Bxd4+ {[%clk 0:01:24.8]}
28. cxd4 {[%clk 0:02:26.3]} 28... Qxd4+ {[%clk 0:01:24.9]} 29. Kh1 {[%clk
0:02:26.8]} 29... Rb8 {[%clk 0:01:22.6]} 30. Qc3 {[%clk 0:02:24.4]} 30... Qb4
{[%clk 0:01:02.9]} 31. Rf2 {[%clk 0:02:19.8]} 31... Qe7 {[%clk 0:00:58.1]} 32.
Rc2 {[%clk 0:02:08.2]} 32... h5 {[%clk 0:00:53.6]} 33. Qc4+ {[%clk 0:02:07]}
33... Kg7 {[%clk 0:00:44.5]} 34. Qd4+ {[%clk 0:02:05]} 34... Kh6 {[%clk
0:00:41.9]} 35. Qf4+ {[%clk 0:02:04.2]} 1-0

[Event "*** Titled Tuesday Blitz"]
[Site "Chess.com"]
[Date "2021.02.16"]
[Round "7"]
[White "verdest"]
[Black "BairaKovanova"]
[Result "0-1"]
[WhiteElo "2491"]
[BlackElo "2462"]
[TimeControl "180+1"]
[EndTime "11:16:18 PST"]
[Termination "BairaKovanova won by resignation"]

1. d4 {[%clk 0:02:58.8]} 1... Nf6 {[%clk 0:03:00.1]} 2. c4 {[%clk 0:02:57.1]}
2... e6 {[%clk 0:03:00.2]} 3. Nc3 {[%clk 0:02:55.8]} 3... Bb4 {[%clk 0:02:59]}
4. Nf3 {[%clk 0:02:54.8]} 4... b6 {[%clk 0:02:57.8]} 5. Bg5 {[%clk 0:02:54.5]}
5... h6 {[%clk 0:02:58.2]} 6. Bh4 {[%clk 0:02:54]} 6... g5 {[%clk 0:02:58.5]} 7.
Bg3 {[%clk 0:02:53.8]} 7... Bb7 {[%clk 0:02:57.9]} 8. e3 {[%clk 0:02:53.4]} 8...
Ne4 {[%clk 0:02:58.2]} 9. Qc2 {[%clk 0:02:53.1]} 9... Bxc3+ {[%clk 0:02:58.2]}
10. bxc3 {[%clk 0:02:53.5]} 10... d6 {[%clk 0:02:57.5]} 11. Bd3 {[%clk
0:02:53.4]} 11... f5 {[%clk 0:02:53.9]} 12. Nd2 {[%clk 0:02:52.8]} 12... Nxg3
{[%clk 0:02:49.3]} 13. hxg3 {[%clk 0:02:53.7]} 13... Qf6 {[%clk 0:02:32.2]} 14.
Rh2 {[%clk 0:02:50.8]} 14... Nd7 {[%clk 0:02:29.9]} 15. a4 {[%clk 0:02:48.6]}
15... a5 {[%clk 0:02:29.3]} 16. Rb1 {[%clk 0:02:46.9]} 16... O-O-O {[%clk
0:02:26.1]} 17. Nb3 {[%clk 0:02:43.9]} 17... f4 {[%clk 0:02:25.1]} 18. gxf4
{[%clk 0:02:36.2]} 18... gxf4 {[%clk 0:02:24.7]} 19. e4 {[%clk 0:02:36.2]} 19...
e5 {[%clk 0:02:20.9]} 20. c5 {[%clk 0:02:32.2]} 20... dxc5 {[%clk 0:02:03.4]}
21. dxc5 {[%clk 0:02:30]} 21... Kb8 {[%clk 0:01:51.8]} 22. c6 {[%clk 0:01:46]}
22... Qxc6 {[%clk 0:01:47.3]} 23. Rh5 {[%clk 0:01:31.7]} 23... Qxa4 {[%clk
0:01:33.8]} 24. Ra1 {[%clk 0:01:17.9]} 24... Qc6 {[%clk 0:01:33.7]} 0-1

[Event "*** Titled Tuesday Blitz"]
[Site "Chess.com"]
[Date "2021.02.16"]
[Round "7"]
[White "BigAl"]
[Black "Andrakhanova"]
[Result "1-0"]
[WhiteElo "2468"]
[BlackElo "2274"]
[TimeControl "180+1"]
[EndTime "11:16:23 PST"]
[Termination "BigAl won by resignation"]

1. Nf3 {[%clk 0:03:00.9]} 1... d5 {[%clk 0:02:56.8]} 2. g3 {[%clk 0:03:00.4]}
2... c6 {[%clk 0:02:56.6]} 3. Bg2 {[%clk 0:03:01]} 3... Nf6 {[%clk 0:02:55.4]}
4. O-O {[%clk 0:03:01.5]} 4... g6 {[%clk 0:02:55.2]} 5. d3 {[%clk 0:03:01.1]}
5... Bg7 {[%clk 0:02:55.3]} 6. Nbd2 {[%clk 0:02:58.1]} 6... O-O {[%clk
0:02:55.3]} 7. e4 {[%clk 0:02:58.7]} 7... Nbd7 {[%clk 0:02:55.7]} 8. e5 {[%clk
0:02:54.9]} 8... Ne8 {[%clk 0:02:55.3]} 9. d4 {[%clk 0:02:55.1]} 9... f6 {[%clk
0:02:55.8]} 10. exf6 {[%clk 0:02:47.8]} 10... Bxf6 {[%clk 0:02:55.9]} 11. Re1
{[%clk 0:02:46.5]} 11... Qc7 {[%clk 0:02:56]} 12. c4 {[%clk 0:02:41.7]} 12... e5
{[%clk 0:02:50.2]} 13. dxe5 {[%clk 0:02:37.7]} 13... Nxe5 {[%clk 0:02:47.6]} 14.
cxd5 {[%clk 0:02:36.1]} 14... Nd3 {[%clk 0:02:38.2]} 15. Re3 {[%clk 0:02:21]}
15... Nxb2 {[%clk 0:02:32.2]} 16. Qb3 {[%clk 0:02:18.9]} 16... Qb6 {[%clk
0:02:26.9]} 17. dxc6+ {[%clk 0:01:52.3]} 17... Qxb3 {[%clk 0:02:22.6]} 18. Rxb3
{[%clk 0:01:51.6]} 18... Nd3 {[%clk 0:02:09.5]} 19. cxb7 {[%clk 0:01:26.7]}
19... Bxb7 {[%clk 0:02:10.4]} 20. Rab1 {[%clk 0:01:22]} 20... Nxc1 {[%clk
0:02:03.6]} 21. Rxb7 {[%clk 0:01:21.5]} 21... Nd3 {[%clk 0:01:57]} 22. Ne4
{[%clk 0:01:12.1]} 22... Bg7 {[%clk 0:01:51.6]} 23. Nfg5 {[%clk 0:01:10.7]}
23... Bd4 {[%clk 0:01:42.6]} 24. Ne6 {[%clk 0:01:06]} 24... Bxf2+ {[%clk
0:01:39.2]} 25. Nxf2 {[%clk 0:01:05.6]} 25... Rxf2 {[%clk 0:01:40.1]} 26. R7b3
{[%clk 0:00:50.6]} 26... Rd2 {[%clk 0:01:34.2]} 27. Bxa8 {[%clk 0:00:49.4]}
27... Nf2 {[%clk 0:01:29.9]} 28. Bg2 {[%clk 0:00:45.9]} 1-0

[Event "*** Titled Tuesday Blitz"]
[Site "Chess.com"]
[Date "2021.02.16"]
[Round "7"]
[White "kuba2006"]
[Black "AlexNovitz"]
[Result "1-0"]
[WhiteElo "2373"]
[BlackElo "2199"]
[TimeControl "180+1"]
[EndTime "11:16:30 PST"]
[Termination "kuba2006 won by resignation"]

1. e4 {[%clk 0:03:00.9]} 1... e6 {[%clk 0:02:59.9]} 2. d4 {[%clk 0:03:00.4]}
2... d5 {[%clk 0:03:00.5]} 3. e5 {[%clk 0:03:00.9]} 3... c5 {[%clk 0:03:00.4]}
4. c3 {[%clk 0:03:01.1]} 4... Nc6 {[%clk 0:03:01.1]} 5. Nf3 {[%clk 0:03:00.4]}
5... Qb6 {[%clk 0:03:01.6]} 6. Bd3 {[%clk 0:03:00.3]} 6... Bd7 {[%clk
0:02:59.8]} 7. dxc5 {[%clk 0:03:00]} 7... Bxc5 {[%clk 0:02:59]} 8. O-O {[%clk
0:03:00.3]} 8... Nh6 {[%clk 0:02:58.3]} 9. b4 {[%clk 0:02:58.1]} 9... Be7 {[%clk
0:02:58.2]} 10. Bxh6 {[%clk 0:02:52.5]} 10... gxh6 {[%clk 0:02:58]} 11. Qd2
{[%clk 0:02:52.9]} 11... O-O-O {[%clk 0:02:56.9]} 12. a4 {[%clk 0:02:48.5]}
12... d4 {[%clk 0:02:50.4]} 13. a5 {[%clk 0:02:33.3]} 13... dxc3 {[%clk
0:02:49.5]} 14. Nxc3 {[%clk 0:02:21.9]} 14... Qxb4 {[%clk 0:02:42.8]} 15. Rfb1
{[%clk 0:02:20.8]} 15... Qg4 {[%clk 0:02:40]} 16. Be4 {[%clk 0:01:29.3]} 16...
Rhg8 {[%clk 0:02:16.4]} 17. g3 {[%clk 0:01:17.5]} 17... Bb4 {[%clk 0:02:15.2]}
18. a6 {[%clk 0:00:43.3]} 18... b6 {[%clk 0:02:05]} 19. Rxb4 {[%clk 0:00:39.5]}
19... Be8 {[%clk 0:01:32.4]} 20. Bxc6 {[%clk 0:00:31.5]} 20... Qxb4 {[%clk
0:01:31.4]} 21. Bb7+ {[%clk 0:00:31.5]} 21... Kc7 {[%clk 0:01:31]} 22. Nd5+
{[%clk 0:00:31.4]} 1-0

[Event "*** Titled Tuesday Blitz"]
[Site "Chess.com"]
[Date "2021.02.16"]
[Round "7"]
[White "Gahan-MG"]
[Black "drragnar1"]
[Result "1-0"]
[WhiteElo "2651"]
[BlackElo "2425"]
[TimeControl "180+1"]
[EndTime "11:16:32 PST"]
[Termination "Gahan-MG won by resignation"]

1. e4 {[%clk 0:03:00.9]} 1... c5 {[%clk 0:02:57.5]} 2. c3 {[%clk 0:03:00.3]}
2... d5 {[%clk 0:02:57.1]} 3. exd5 {[%clk 0:03:01.2]} 3... Qxd5 {[%clk
0:02:57.4]} 4. d4 {[%clk 0:03:01.8]} 4... Nf6 {[%clk 0:02:57.7]} 5. Nf3 {[%clk
0:03:02.2]} 5... Nc6 {[%clk 0:02:57.7]} 6. Be3 {[%clk 0:03:00.5]} 6... Bf5
{[%clk 0:02:53.2]} 7. c4 {[%clk 0:02:55.9]} 7... Qd8 {[%clk 0:02:24.5]} 8. d5
{[%clk 0:02:54.9]} 8... Nb4 {[%clk 0:02:14.4]} 9. Na3 {[%clk 0:02:49.7]} 9...
Qa5 {[%clk 0:02:04.9]} 10. Bd2 {[%clk 0:02:39.2]} 10... Ne4 {[%clk 0:02:04.4]}
11. Be2 {[%clk 0:02:36.7]} 11... Nxd2 {[%clk 0:02:02.8]} 12. Qxd2 {[%clk
0:02:32.7]} 12... e6 {[%clk 0:01:48.5]} 13. O-O {[%clk 0:02:26.3]} 13... Be7
{[%clk 0:01:41.7]} 14. d6 {[%clk 0:02:16.1]} 14... O-O-O {[%clk 0:01:23.2]} 15.
Nb5 {[%clk 0:02:07.4]} 15... Qb6 {[%clk 0:00:54]} 16. Rfd1 {[%clk 0:01:59.7]}
16... a6 {[%clk 0:00:42.1]} 17. a3 {[%clk 0:01:46.6]} 17... axb5 {[%clk
0:00:38.8]} 18. axb4 {[%clk 0:01:44.8]} 18... Bxd6 {[%clk 0:00:31.8]} 19. bxc5
{[%clk 0:01:39.2]} 19... Bxc5 {[%clk 0:00:21.2]} 20. Ra8+ {[%clk 0:01:36]} 1-0